[Event "*** Titled Tuesday Blitz"]
[Site "Chess.com"]
[Date "2020.12.01"]
[Round "9"]
[White "elohunter1999"]
[Black "Alomaterapia"]
[Result "1-0"]
[WhiteElo "2578"]
[BlackElo "2443"]
[TimeControl "180+1"]
[EndTime "11:43:34 PST"]
[Termination "elohunter1999 won by checkmate"]

1. e4 {[%clk 0:03:00.9]} 1... e5 {[%clk 0:02:30.1]} 2. Nf3 {[%clk 0:03:00.5]}
2... Nc6 {[%clk 0:02:29.6]} 3. Bb5 {[%clk 0:03:00.1]} 3... a6 {[%clk 0:02:29.3]}
4. Ba4 {[%clk 0:03:00.1]} 4... Nf6 {[%clk 0:02:28.5]} 5. O-O {[%clk 0:03:00.1]}
5... Bc5 {[%clk 0:02:25.3]} 6. c3 {[%clk 0:02:58.9]} 6... b5 {[%clk 0:02:24.9]}
7. Bc2 {[%clk 0:02:58]} 7... d6 {[%clk 0:02:23.8]} 8. d4 {[%clk 0:02:56]} 8...
Bb6 {[%clk 0:02:24.2]} 9. h3 {[%clk 0:02:55.8]} 9... h6 {[%clk 0:02:23.4]} 10.
Be3 {[%clk 0:02:50.5]} 10... O-O {[%clk 0:02:13.3]} 11. Nbd2 {[%clk 0:02:50.2]}
11... exd4 {[%clk 0:02:05.8]} 12. cxd4 {[%clk 0:02:49.7]} 12... Nb4 {[%clk
0:02:05.8]} 13. Bb1 {[%clk 0:02:49.4]} 13... c5 {[%clk 0:02:05.4]} 14. dxc5
{[%clk 0:02:26.9]} 14... dxc5 {[%clk 0:02:05.4]} 15. a3 {[%clk 0:02:26.6]} 15...
Nd3 {[%clk 0:01:43.6]} 16. e5 {[%clk 0:02:26.3]} 16... Nd5 {[%clk 0:01:38]} 17.
Bxh6 {[%clk 0:02:05.9]} 17... c4 {[%clk 0:01:28.7]} 18. Bg5 {[%clk 0:01:58.3]}
18... Qe8 {[%clk 0:01:19.4]} 19. Ne4 {[%clk 0:01:56]} 19... N5f4 {[%clk
0:01:02.9]} 20. Qd2 {[%clk 0:01:23.3]} 20... Nxh3+ {[%clk 0:00:37.7]} 21. gxh3
{[%clk 0:01:20.6]} 21... Bxh3 {[%clk 0:00:37.7]} 22. Nf6+ {[%clk 0:00:57.1]}
22... gxf6 {[%clk 0:00:24.4]} 23. Bxf6 {[%clk 0:00:58]} 23... Kh7 {[%clk
0:00:18.6]} 24. Ng5+ {[%clk 0:00:53.9]} 24... Kg6 {[%clk 0:00:16.8]} 25. Nxh3
{[%clk 0:00:48.2]} 25... Rg8 {[%clk 0:00:17]} 26. Kh2 {[%clk 0:00:36.6]} 26...
Kh5 {[%clk 0:00:11.6]} 27. Bxd3 {[%clk 0:00:23.3]} 27... cxd3 {[%clk 0:00:08.1]}
28. Qxd3 {[%clk 0:00:21]} 28... Qc6 {[%clk 0:00:07.1]} 29. Qh7+ {[%clk
0:00:17.9]} 29... Kg4 {[%clk 0:00:07.5]} 30. Rg1+ {[%clk 0:00:15.6]} 30... Kf3
{[%clk 0:00:07.9]} 31. Qd3+ {[%clk 0:00:15.4]} 31... Be3 {[%clk 0:00:05]} 32.
Qxe3# {[%clk 0:00:15.7]} 1-0

[Event "*** Titled Tuesday Blitz"]
[Site "Chess.com"]
[Date "2020.12.01"]
[Round "9"]
[White "Tsyhanchuk_Stanislav"]
[Black "RaneshRatnesan"]
[Result "0-1"]
[WhiteElo "2205"]
[BlackElo "2155"]
[TimeControl "180+1"]
[EndTime "11:43:37 PST"]
[Termination "RaneshRatnesan won by resignation"]

1. d4 {[%clk 0:03:00.9]} 1... d5 {[%clk 0:02:58.8]} 2. Nf3 {[%clk 0:02:59.9]}
2... Nf6 {[%clk 0:02:58.7]} 3. c4 {[%clk 0:02:59.1]} 3... c6 {[%clk 0:02:59.2]}
4. e3 {[%clk 0:02:57.9]} 4... Bf5 {[%clk 0:02:57]} 5. Qb3 {[%clk 0:02:55.9]}
5... Qb6 {[%clk 0:02:53.4]} 6. c5 {[%clk 0:02:55.8]} 6... Qc7 {[%clk 0:02:50.7]}
7. Nc3 {[%clk 0:02:54.5]} 7... Nbd7 {[%clk 0:02:50.1]} 8. Be2 {[%clk 0:02:52.7]}
8... Rb8 {[%clk 0:02:48.5]} 9. O-O {[%clk 0:02:51.2]} 9... e5 {[%clk 0:02:48]}
10. dxe5 {[%clk 0:02:46]} 10... Nxe5 {[%clk 0:02:48.7]} 11. Nxe5 {[%clk
0:02:46.2]} 11... Qxe5 {[%clk 0:02:49.6]} 12. Bd2 {[%clk 0:02:28.1]} 12... Bxc5
{[%clk 0:02:48.1]} 13. Rac1 {[%clk 0:02:28.6]} 13... Bd6 {[%clk 0:02:42.6]} 14.
f4 {[%clk 0:02:27.1]} 14... Qe7 {[%clk 0:02:40.2]} 15. h3 {[%clk 0:02:08.4]}
15... Ne4 {[%clk 0:02:34.6]} 16. Nxe4 {[%clk 0:02:06.7]} 16... Bxe4 {[%clk
0:02:35.5]} 17. Bd3 {[%clk 0:01:43.7]} 17... O-O {[%clk 0:02:29.5]} 18. Bxe4
{[%clk 0:01:44]} 18... Qxe4 {[%clk 0:02:30.3]} 19. Qc2 {[%clk 0:01:42.2]} 19...
Rfe8 {[%clk 0:02:25.8]} 20. Qxe4 {[%clk 0:01:40.3]} 20... Rxe4 {[%clk
0:02:26.7]} 21. Kf2 {[%clk 0:01:40.4]} 21... Bc7 {[%clk 0:02:26.4]} 22. Kf3
{[%clk 0:01:39.6]} 22... Bb6 {[%clk 0:02:26.2]} 23. g4 {[%clk 0:01:38.3]} 23...
Rbe8 {[%clk 0:02:25.7]} 24. Rfe1 {[%clk 0:01:38.8]} 24... g6 {[%clk 0:02:23]}
25. h4 {[%clk 0:01:38]} 25... f5 {[%clk 0:02:22.8]} 26. gxf5 {[%clk 0:01:36.5]}
26... gxf5 {[%clk 0:02:23.7]} 27. Rg1+ {[%clk 0:01:35.9]} 27... Kf7 {[%clk
0:02:23.4]} 28. Rce1 {[%clk 0:01:32.2]} 28... d4 {[%clk 0:02:12.2]} 29. Rg5
{[%clk 0:01:25]} 29... Kf6 {[%clk 0:02:02.6]} 30. h5 {[%clk 0:01:14.8]} 30...
dxe3 {[%clk 0:01:39.6]} 31. Bc3+ {[%clk 0:01:13.9]} 31... Bd4 {[%clk 0:01:40.2]}
32. Bxd4+ {[%clk 0:01:13.8]} 32... Rxd4 {[%clk 0:01:41.1]} 33. Rxe3 {[%clk
0:01:14.1]} 33... Rxe3+ {[%clk 0:01:38.8]} 34. Kxe3 {[%clk 0:01:15]} 34... Re4+
{[%clk 0:01:39.2]} 35. Kf3 {[%clk 0:01:14.9]} 35... a5 {[%clk 0:01:27.6]} 36. h6
{[%clk 0:01:14.2]} 36... Re7 {[%clk 0:01:24]} 37. a4 {[%clk 0:01:04.6]} 37... b5
{[%clk 0:01:22.8]} 38. axb5 {[%clk 0:01:04.5]} 38... cxb5 {[%clk 0:01:23.7]} 39.
b3 {[%clk 0:01:03.6]} 39... a4 {[%clk 0:01:21.4]} 40. bxa4 {[%clk 0:01:02.9]}
40... bxa4 {[%clk 0:01:22.3]} 41. Rg2 {[%clk 0:01:03.2]} 41... a3 {[%clk
0:01:21.3]} 42. Ra2 {[%clk 0:01:01.7]} 42... Ra7 {[%clk 0:01:21.6]} 43. Ke3
{[%clk 0:01:01.4]} 43... Kg6 {[%clk 0:01:21.6]} 44. Kd4 {[%clk 0:00:52]} 44...
Ra5 {[%clk 0:01:06.3]} 45. Rg2+ {[%clk 0:00:40.7]} 45... Kxh6 {[%clk 0:01:03.1]}
46. Rh2+ {[%clk 0:00:41.6]} 46... Kg6 {[%clk 0:01:02.6]} 47. Rg2+ {[%clk
0:00:42.5]} 47... Kf6 {[%clk 0:01:02.8]} 48. Ra2 {[%clk 0:00:43.4]} 48... Ra4+
{[%clk 0:00:58.3]} 49. Ke3 {[%clk 0:00:43.4]} 49... Ke6 {[%clk 0:00:50]} 50. Kf3
{[%clk 0:00:43.2]} 50... Kd5 {[%clk 0:00:49.5]} 51. Ke3 {[%clk 0:00:43.3]} 51...
Kc4 {[%clk 0:00:46.4]} 52. Kd2 {[%clk 0:00:41.6]} 52... Kb3 {[%clk 0:00:46.5]}
53. Ra1 {[%clk 0:00:40.3]} 53... Kb2 {[%clk 0:00:45.6]} 0-1

[Event "*** Titled Tuesday Blitz"]
[Site "Chess.com"]
[Date "2020.12.01"]
[Round "9"]
[White "ikhasu"]
[Black "CheckThis4"]
[Result "0-1"]
[WhiteElo "2425"]
[BlackElo "2553"]
[TimeControl "180+1"]
[EndTime "11:43:38 PST"]
[Termination "CheckThis4 won on time"]

1. e4 {[%clk 0:00:14.1]} 1... c5 {[%clk 0:02:57.6]} 2. Nf3 {[%clk 0:00:12.5]}
2... d6 {[%clk 0:02:57.7]} 3. d4 {[%clk 0:00:12.8]} 3... cxd4 {[%clk 0:02:57.8]}
4. Nxd4 {[%clk 0:00:13.2]} 4... Nf6 {[%clk 0:02:58]} 5. Nc3 {[%clk 0:00:13.2]}
5... g6 {[%clk 0:02:58.2]} 6. Be2 {[%clk 0:00:12.4]} 6... Bg7 {[%clk 0:02:58]}
7. O-O {[%clk 0:00:12.1]} 7... Nc6 {[%clk 0:02:57.9]} 8. Nb3 {[%clk 0:00:12.1]}
8... O-O {[%clk 0:02:57.6]} 9. Bg5 {[%clk 0:00:12]} 9... a6 {[%clk 0:02:57.4]}
10. f4 {[%clk 0:00:10.2]} 10... b5 {[%clk 0:02:56.9]} 11. Bf3 {[%clk 0:00:09.1]}
11... b4 {[%clk 0:02:55.6]} 12. Nd5 {[%clk 0:00:09]} 12... Nxd5 {[%clk
0:02:53.8]} 13. exd5 {[%clk 0:00:09.1]} 13... Na5 {[%clk 0:02:54]} 14. Rb1
{[%clk 0:00:08.4]} 14... Nc4 {[%clk 0:02:42.8]} 15. Qe2 {[%clk 0:00:07.6]} 15...
Qc7 {[%clk 0:02:20.6]} 16. Qxe7 {[%clk 0:00:06.1]} 16... Qb6+ {[%clk 0:02:14.5]}
17. Kh1 {[%clk 0:00:05.7]} 17... Bf5 {[%clk 0:02:06]} 18. Qe2 {[%clk 0:00:05.2]}
18... Ne3 {[%clk 0:01:59.3]} 19. Rfe1 {[%clk 0:00:04.7]} 19... Rfe8 {[%clk
0:01:57.8]} 20. Qd2 {[%clk 0:00:03.6]} 20... Nxc2 {[%clk 0:01:48.5]} 21. Rxe8+
{[%clk 0:00:04.1]} 21... Rxe8 {[%clk 0:01:48.4]} 22. Rc1 {[%clk 0:00:04.7]}
22... Bxb2 {[%clk 0:01:30.4]} 23. Rf1 {[%clk 0:00:04.6]} 23... Bc3 {[%clk
0:01:24.7]} 24. Qc1 {[%clk 0:00:04.2]} 24... Ne3 {[%clk 0:01:20.2]} 25. Rg1
{[%clk 0:00:04.3]} 25... Rc8 {[%clk 0:01:14.3]} 26. Bh4 {[%clk 0:00:03.3]} 26...
Bf6 {[%clk 0:01:01.4]} 27. Qe1 {[%clk 0:00:03.2]} 27... Bg7 {[%clk 0:00:44.3]}
28. Bf2 {[%clk 0:00:02.7]} 28... Re8 {[%clk 0:00:40.3]} 29. Qe2 {[%clk
0:00:02.8]} 29... Qb5 {[%clk 0:00:19.1]} 30. Qxb5 {[%clk 0:00:01.8]} 30... axb5
{[%clk 0:00:20]} 31. Re1 {[%clk 0:00:01.9]} 31... Ra8 {[%clk 0:00:18.5]} 32.
Bxe3 {[%clk 0:00:01.5]} 32... Rxa2 {[%clk 0:00:18.8]} 0-1

[Event "*** Titled Tuesday Blitz"]
[Site "Chess.com"]
[Date "2020.12.01"]
[Round "9"]
[White "esrosenberg"]
[Black "GAusal"]
[Result "1-0"]
[WhiteElo "2215"]
[BlackElo "2087"]
[TimeControl "180+1"]
[EndTime "11:43:38 PST"]
[Termination "esrosenberg won by resignation"]

1. Nf3 {[%clk 0:03:00.9]} 1... d5 {[%clk 0:02:59.4]} 2. c4 {[%clk 0:03:00.8]}
2... c6 {[%clk 0:02:59.5]} 3. d4 {[%clk 0:03:00.9]} 3... Nf6 {[%clk 0:02:58.2]}
4. Nc3 {[%clk 0:03:01.4]} 4... Bf5 {[%clk 0:02:57.4]} 5. cxd5 {[%clk 0:02:59.4]}
5... Nxd5 {[%clk 0:02:55.4]} 6. Qb3 {[%clk 0:02:58.8]} 6... Nb6 {[%clk
0:02:53.2]} 7. Bg5 {[%clk 0:02:33.8]} 7... Qd6 {[%clk 0:02:39.5]} 8. e3 {[%clk
0:02:26.1]} 8... e6 {[%clk 0:02:39.4]} 9. a3 {[%clk 0:02:20.8]} 9... Be7 {[%clk
0:02:28.8]} 10. Bf4 {[%clk 0:02:09.5]} 10... Qd8 {[%clk 0:02:23.3]} 11. h3
{[%clk 0:02:07.7]} 11... O-O {[%clk 0:02:22.4]} 12. g4 {[%clk 0:02:02.6]} 12...
Bg6 {[%clk 0:02:21.2]} 13. Ne5 {[%clk 0:02:03.1]} 13... N8d7 {[%clk 0:02:17]}
14. Nxg6 {[%clk 0:02:02.4]} 14... hxg6 {[%clk 0:02:16.1]} 15. Bd3 {[%clk
0:01:55.7]} 15... Nf6 {[%clk 0:02:15.4]} 16. O-O-O {[%clk 0:01:50.8]} 16... Nfd5
{[%clk 0:02:15]} 17. Be5 {[%clk 0:01:45.8]} 17... Nxc3 {[%clk 0:02:12.2]} 18.
bxc3 {[%clk 0:01:39.5]} 18... Qd5 {[%clk 0:02:06.3]} 19. c4 {[%clk 0:01:26.8]}
19... Qa5 {[%clk 0:01:56]} 20. c5 {[%clk 0:01:24.5]} 20... Nd5 {[%clk
0:01:53.1]} 21. Kc2 {[%clk 0:01:01.5]} 21... b6 {[%clk 0:01:52.5]} 22. e4 {[%clk
0:01:00.4]} 22... Nf6 {[%clk 0:01:26.6]} 23. g5 {[%clk 0:00:51]} 23... Nd7
{[%clk 0:01:21.2]} 24. Bd6 {[%clk 0:00:51.4]} 24... Rfe8 {[%clk 0:01:01.8]} 25.
h4 {[%clk 0:00:45]} 25... bxc5 {[%clk 0:01:01.4]} 26. Bxe7 {[%clk 0:00:40.7]}
26... Rxe7 {[%clk 0:00:55.8]} 27. h5 {[%clk 0:00:39.7]} 27... Rb8 {[%clk
0:00:42.8]} 28. Qc3 {[%clk 0:00:37.4]} 28... cxd4 {[%clk 0:00:36.6]} 29. Qxa5
{[%clk 0:00:36.3]} 29... Nb6 {[%clk 0:00:23]} 30. hxg6 {[%clk 0:00:33.6]} 30...
fxg6 {[%clk 0:00:22.9]} 31. Rh3 {[%clk 0:00:28.2]} 31... c5 {[%clk 0:00:20.2]}
32. Rdh1 {[%clk 0:00:27]} 32... c4 {[%clk 0:00:18.7]} 33. Rh8+ {[%clk
0:00:26.4]} 33... Kf7 {[%clk 0:00:18.1]} 34. Rxb8 {[%clk 0:00:26.5]} 34... cxd3+
{[%clk 0:00:17.8]} 35. Kxd3 {[%clk 0:00:27.2]} 35... Nd7 {[%clk 0:00:15]} 36.
Rb7 {[%clk 0:00:24.8]} 36... Nc5+ {[%clk 0:00:13.1]} 37. Qxc5 {[%clk 0:00:24.7]}
37... Rxb7 {[%clk 0:00:13.5]} 38. Kxd4 {[%clk 0:00:23.4]} 38... Re7 {[%clk
0:00:13]} 39. Rh3 {[%clk 0:00:20]} 1-0

[Event "*** Titled Tuesday Blitz"]
[Site "Chess.com"]
[Date "2020.12.01"]
[Round "9"]
[White "politeplayer"]
[Black "MF1966Idrisov"]
[Result "0-1"]
[WhiteElo "2253"]
[BlackElo "2380"]
[TimeControl "180+1"]
[EndTime "11:43:39 PST"]
[Termination "MF1966Idrisov won on time"]

1. e4 {[%clk 0:03:00.9]} 1... d5 {[%clk 0:02:59.1]} 2. exd5 {[%clk 0:02:59.9]}
2... Qxd5 {[%clk 0:02:59.1]} 3. Nf3 {[%clk 0:03:00.6]} 3... a6 {[%clk
0:02:56.3]} 4. d4 {[%clk 0:02:59.3]} 4... Bg4 {[%clk 0:02:54.7]} 5. Be2 {[%clk
0:02:54.9]} 5... Nf6 {[%clk 0:02:53.6]} 6. h3 {[%clk 0:02:50.3]} 6... Bh5 {[%clk
0:02:52.1]} 7. g4 {[%clk 0:02:50.6]} 7... Bg6 {[%clk 0:02:51.2]} 8. Nc3 {[%clk
0:02:43.7]} 8... Qd6 {[%clk 0:02:50.7]} 9. Ne5 {[%clk 0:02:40.5]} 9... Nc6
{[%clk 0:02:48.3]} 10. Bf4 {[%clk 0:02:33.8]} 10... Qxd4 {[%clk 0:02:37]} 11.
Qxd4 {[%clk 0:02:12.8]} 11... Nxd4 {[%clk 0:02:34]} 12. Nxg6 {[%clk 0:02:06.3]}
12... hxg6 {[%clk 0:02:24.3]} 13. O-O-O {[%clk 0:02:00.2]} 13... Nxe2+ {[%clk
0:01:53.3]} 14. Nxe2 {[%clk 0:02:00]} 14... Ne4 {[%clk 0:01:32.5]} 15. Rd4
{[%clk 0:01:40.8]} 15... Nd6 {[%clk 0:01:15.8]} 16. Nc3 {[%clk 0:01:33.9]} 16...
e6 {[%clk 0:01:14.2]} 17. h4 {[%clk 0:01:25]} 17... O-O-O {[%clk 0:01:11.2]} 18.
h5 {[%clk 0:01:19]} 18... f6 {[%clk 0:01:08.9]} 19. Bxd6 {[%clk 0:01:05.8]}
19... Rxd6 {[%clk 0:01:05.8]} 20. Rxd6 {[%clk 0:01:01.7]} 20... Bxd6 {[%clk
0:01:04.8]} 21. Re1 {[%clk 0:00:54.9]} 21... gxh5 {[%clk 0:01:01]} 22. gxh5
{[%clk 0:00:53.5]} 22... Rxh5 {[%clk 0:01:00.4]} 23. Rxe6 {[%clk 0:00:52.9]}
23... Kd7 {[%clk 0:00:57.7]} 24. Re1 {[%clk 0:00:49.9]} 24... Bb4 {[%clk
0:00:49.9]} 25. Rg1 {[%clk 0:00:46.4]} 25... Rh7 {[%clk 0:00:38.3]} 26. Nd5
{[%clk 0:00:43]} 26... Bd6 {[%clk 0:00:35.4]} 27. f4 {[%clk 0:00:38.7]} 27...
Ke6 {[%clk 0:00:35.3]} 28. c4 {[%clk 0:00:27.1]} 28... c6 {[%clk 0:00:34.8]} 29.
Re1+ {[%clk 0:00:27.3]} 29... Kf5 {[%clk 0:00:34.2]} 30. Ne7+ {[%clk 0:00:20.1]}
30... Kxf4 {[%clk 0:00:32.7]} 31. Nc8 {[%clk 0:00:16.5]} 31... Be5 {[%clk
0:00:31.3]} 32. b4 {[%clk 0:00:09.1]} 32... Rh2 {[%clk 0:00:29.6]} 33. a4 {[%clk
0:00:05]} 33... Ra2 {[%clk 0:00:27.9]} 34. Rf1+ {[%clk 0:00:01.9]} 34... Ke4
{[%clk 0:00:27]} 35. Re1+ {[%clk 0:00:01.7]} 35... Kd3 {[%clk 0:00:25.7]} 0-1

[Event "*** Titled Tuesday Blitz"]
[Site "Chess.com"]
[Date "2020.12.01"]
[Round "9"]
[White "snowlord"]
[Black "Artyom_ChessMate"]
[Result "0-1"]
[WhiteElo "2786"]
[BlackElo "2581"]
[TimeControl "180+1"]
[EndTime "11:43:42 PST"]
[Termination "Artyom_ChessMate won by resignation"]

1. e4 {[%clk 0:03:00.9]} 1... c5 {[%clk 0:02:58.4]} 2. Nf3 {[%clk 0:03:01.3]}
2... d6 {[%clk 0:02:56.3]} 3. d4 {[%clk 0:03:01.5]} 3... cxd4 {[%clk 0:02:57.2]}
4. Bc4 {[%clk 0:03:00.6]} 4... Nf6 {[%clk 0:02:55.6]} 5. Qxd4 {[%clk 0:03:00.7]}
5... Nc6 {[%clk 0:02:54.1]} 6. Qd3 {[%clk 0:03:00.2]} 6... g6 {[%clk 0:02:53.4]}
7. Nc3 {[%clk 0:03:00.3]} 7... Bg7 {[%clk 0:02:53.7]} 8. h3 {[%clk 0:03:00.9]}
8... O-O {[%clk 0:02:53.9]} 9. O-O {[%clk 0:03:01.6]} 9... a6 {[%clk 0:02:53.6]}
10. a4 {[%clk 0:02:57.9]} 10... Nd7 {[%clk 0:02:49.8]} 11. Bg5 {[%clk 0:02:51]}
11... Nce5 {[%clk 0:02:38.1]} 12. Nxe5 {[%clk 0:02:49.9]} 12... Nxe5 {[%clk
0:02:39]} 13. Qe2 {[%clk 0:02:50.3]} 13... Nxc4 {[%clk 0:02:38.1]} 14. Qxc4
{[%clk 0:02:51.2]} 14... Be6 {[%clk 0:02:38.5]} 15. Qb4 {[%clk 0:02:50.7]} 15...
Qc7 {[%clk 0:02:35.2]} 16. Nd5 {[%clk 0:02:45.7]} 16... Bxd5 {[%clk 0:02:31.8]}
17. exd5 {[%clk 0:02:46.6]} 17... h6 {[%clk 0:02:11.8]} 18. Bh4 {[%clk 0:02:46]}
18... g5 {[%clk 0:02:12.1]} 19. Bg3 {[%clk 0:02:46.2]} 19... Qxc2 {[%clk
0:02:04.1]} 20. Qxb7 {[%clk 0:02:46.1]} 20... Rfe8 {[%clk 0:01:58.8]} 21. Rab1
{[%clk 0:02:42.5]} 21... Qxa4 {[%clk 0:01:54.3]} 22. Rfc1 {[%clk 0:02:40.2]}
22... Qb5 {[%clk 0:01:53.2]} 23. Qc7 {[%clk 0:02:38]} 23... Bf6 {[%clk
0:01:48.5]} 24. Qc6 {[%clk 0:02:36.5]} 24... Qxc6 {[%clk 0:01:34.7]} 25. dxc6
{[%clk 0:02:37.4]} 25... Rec8 {[%clk 0:01:34.1]} 26. b4 {[%clk 0:02:37.6]} 26...
Rab8 {[%clk 0:01:33.8]} 27. Rc4 {[%clk 0:02:29.4]} 27... Rb6 {[%clk 0:01:33.7]}
28. Rbc1 {[%clk 0:02:29.9]} 28... h5 {[%clk 0:01:04.6]} 29. h4 {[%clk
0:02:11.3]} 29... gxh4 {[%clk 0:01:03.4]} 30. Bxh4 {[%clk 0:02:12.2]} 30... Bxh4
{[%clk 0:01:03]} 31. Rxh4 {[%clk 0:02:13.1]} 31... Rbxc6 {[%clk 0:00:55.7]} 32.
Rxc6 {[%clk 0:02:14]} 32... Rxc6 {[%clk 0:00:56.5]} 33. Rxh5 {[%clk 0:02:14.8]}
33... Rc1+ {[%clk 0:00:48.7]} 34. Kh2 {[%clk 0:02:14.8]} 34... Rb1 {[%clk
0:00:49.6]} 35. Ra5 {[%clk 0:02:14.5]} 35... Rxb4 {[%clk 0:00:49.5]} 36. Rxa6
{[%clk 0:02:15.1]} 36... Kg7 {[%clk 0:00:50.1]} 37. Ra5 {[%clk 0:02:15.4]} 37...
Kf6 {[%clk 0:00:50]} 38. Ra3 {[%clk 0:02:14.6]} 38... d5 {[%clk 0:00:48.5]} 39.
Kg3 {[%clk 0:02:13.7]} 39... Ke5 {[%clk 0:00:46.1]} 40. Re3+ {[%clk 0:02:09.4]}
40... Re4 {[%clk 0:00:45.2]} 41. Ra3 {[%clk 0:02:10]} 41... f5 {[%clk
0:00:44.9]} 42. Kf3 {[%clk 0:02:09.2]} 42... e6 {[%clk 0:00:38.4]} 43. Rb3
{[%clk 0:02:06.3]} 43... Ra4 {[%clk 0:00:34.1]} 44. Re3+ {[%clk 0:02:00.6]}
44... Re4 {[%clk 0:00:29]} 45. Rb3 {[%clk 0:02:00.5]} 45... f4 {[%clk
0:00:22.4]} 46. Ra3 {[%clk 0:01:57.7]} 46... Rc4 {[%clk 0:00:21.6]} 47. Rb3
{[%clk 0:01:54.9]} 47... Kf5 {[%clk 0:00:15.5]} 48. Rb8 {[%clk 0:01:55.1]} 48...
Rc3+ {[%clk 0:00:15]} 49. Ke2 {[%clk 0:01:55.8]} 49... Ke4 {[%clk 0:00:13.1]}
50. Rb4+ {[%clk 0:01:55]} 50... d4 {[%clk 0:00:13.1]} 51. f3+ {[%clk 0:01:55.4]}
51... Kf5 {[%clk 0:00:13.4]} 52. Rb5+ {[%clk 0:01:54.2]} 52... e5 {[%clk
0:00:13.9]} 53. Rb8 {[%clk 0:01:54.6]} 53... Rc2+ {[%clk 0:00:13.7]} 54. Kd3
{[%clk 0:01:46.2]} 54... Rxg2 {[%clk 0:00:12.8]} 55. Rf8+ {[%clk 0:01:47.1]}
55... Ke6 {[%clk 0:00:13.2]} 56. Re8+ {[%clk 0:01:46.6]} 56... Kf6 {[%clk
0:00:13.7]} 57. Rf8+ {[%clk 0:01:43.4]} 57... Ke7 {[%clk 0:00:13.9]} 58. Ra8
{[%clk 0:01:42.8]} 58... Rf2 {[%clk 0:00:13.7]} 59. Ke4 {[%clk 0:01:40.8]} 59...
Re2+ {[%clk 0:00:13.9]} 60. Kf5 {[%clk 0:01:40.9]} 60... Re3 {[%clk 0:00:14.8]}
61. Ra6 {[%clk 0:01:39.2]} 61... d3 {[%clk 0:00:13.5]} 62. Ra7+ {[%clk
0:01:33.7]} 62... Kd6 {[%clk 0:00:13.1]} 63. Ra6+ {[%clk 0:01:30.9]} 63... Kd5
{[%clk 0:00:13.5]} 64. Ra5+ {[%clk 0:01:31.4]} 64... Kc4 {[%clk 0:00:11.3]} 65.
Ra4+ {[%clk 0:01:31.7]} 65... Kb3 {[%clk 0:00:10.7]} 66. Ra8 {[%clk 0:01:31.2]}
66... d2 {[%clk 0:00:11]} 67. Rd8 {[%clk 0:01:29.9]} 67... Kc2 {[%clk
0:00:10.8]} 0-1

[Event "*** Titled Tuesday Blitz"]
[Site "Chess.com"]
[Date "2020.12.01"]
[Round "9"]
[White "MarcLonoff"]
[Black "canary2016"]
[Result "0-1"]
[WhiteElo "2165"]
[BlackElo "2000"]
[TimeControl "180+1"]
[EndTime "11:43:43 PST"]
[Termination "canary2016 won by checkmate"]

1. c4 {[%clk 0:03:00.9]} 1... c6 {[%clk 0:02:59.4]} 2. e4 {[%clk 0:02:59.6]}
2... d5 {[%clk 0:02:58.8]} 3. cxd5 {[%clk 0:02:59.1]} 3... cxd5 {[%clk
0:02:58.9]} 4. exd5 {[%clk 0:02:58.9]} 4... Nf6 {[%clk 0:02:59.4]} 5. Nc3 {[%clk
0:02:57.9]} 5... Nxd5 {[%clk 0:02:54.6]} 6. Bc4 {[%clk 0:02:56.8]} 6... Nf6
{[%clk 0:02:52.7]} 7. d4 {[%clk 0:02:55.5]} 7... Bf5 {[%clk 0:02:51.8]} 8. Nf3
{[%clk 0:02:54.9]} 8... e6 {[%clk 0:02:51.5]} 9. O-O {[%clk 0:02:51.1]} 9... Be7
{[%clk 0:02:50]} 10. d5 {[%clk 0:02:44.8]} 10... O-O {[%clk 0:02:42.8]} 11. dxe6
{[%clk 0:02:31]} 11... Bxe6 {[%clk 0:02:41.6]} 12. Bxe6 {[%clk 0:02:28.9]} 12...
fxe6 {[%clk 0:02:40.7]} 13. Qb3 {[%clk 0:02:28]} 13... Qd7 {[%clk 0:02:24]} 14.
Rd1 {[%clk 0:02:27.1]} 14... Qc6 {[%clk 0:02:21.5]} 15. Nd4 {[%clk 0:02:23.2]}
15... Qb6 {[%clk 0:02:00.2]} 16. Nxe6 {[%clk 0:02:15.4]} 16... Rc8 {[%clk
0:01:43]} 17. Be3 {[%clk 0:01:43.6]} 17... Qxb3 {[%clk 0:01:36.4]} 18. axb3
{[%clk 0:01:43.1]} 18... Nc6 {[%clk 0:01:36.4]} 19. Nd5 {[%clk 0:01:33.4]} 19...
Nxd5 {[%clk 0:01:30.7]} 20. Rxd5 {[%clk 0:01:32.6]} 20... Bf6 {[%clk 0:01:30.7]}
21. Rd7 {[%clk 0:01:14]} 21... b6 {[%clk 0:00:58.4]} 22. Rad1 {[%clk 0:00:52.9]}
22... Bxb2 {[%clk 0:00:51.8]} 23. Bf4 {[%clk 0:00:33.2]} 23... a5 {[%clk
0:00:21.8]} 24. Be3 {[%clk 0:00:27.9]} 24... b5 {[%clk 0:00:20.9]} 25. Nc7
{[%clk 0:00:26.4]} 25... Rab8 {[%clk 0:00:18.8]} 26. Na6 {[%clk 0:00:25.3]}
26... Ra8 {[%clk 0:00:16]} 27. Nc7 {[%clk 0:00:24.2]} 27... Rab8 {[%clk
0:00:16]} 28. Ne6 {[%clk 0:00:23.6]} 28... a4 {[%clk 0:00:14.3]} 29. bxa4 {[%clk
0:00:23.1]} 29... bxa4 {[%clk 0:00:14]} 30. Bc1 {[%clk 0:00:20.5]} 30... a3
{[%clk 0:00:13.8]} 31. Bxb2 {[%clk 0:00:17.9]} 31... axb2 {[%clk 0:00:13.9]} 32.
Rxg7+ {[%clk 0:00:05.9]} 32... Kh8 {[%clk 0:00:13.1]} 33. Rb1 {[%clk 0:00:05.6]}
33... Ne5 {[%clk 0:00:12.3]} 34. Rg3 {[%clk 0:00:03.5]} 34... Rc1+ {[%clk
0:00:11.3]} 35. Rxc1 {[%clk 0:00:02.7]} 35... bxc1=Q# {[%clk 0:00:11]} 0-1